[Event "Titled Tuesday Blitz May 16 Early 2023"]
[White "littlepillow2010"]
[Black "Mendez Fortes, Eduardo Jesus"]
[BlackFideId "3502376"]
[WhiteElo "2369"]
[BlackElo "2307"]
[Result "0-1"]
[Round "01"]
[TimeControl "180+2"]
[Date "2023.05.16"]
[WhiteClock "0:00:00"]
[BlackClock "0:01:49"]

1. e4 {[%clk 0:03:00]}  c5 {[%clk 0:02:59]} 2. Nf3 {[%clk 0:03:00]}  d6 {[%clk 0:02:59]} 3. d4 {[%clk 0:02:59]}  cxd4 {[%clk 0:03:00]} 4. Nxd4 {[%clk 0:03:00]}  Nf6 {[%clk 0:03:00]} 5. Nc3 {[%clk 0:03:00]}  a6 {[%clk 0:03:00]} 6. h3 {[%clk 0:03:00]}  e5 {[%clk 0:03:00]} 7. Nb3 {[%clk 0:02:57]}  Be6 {[%clk 0:02:58]} 8. f4 {[%clk 0:02:57]}  Nc6 {[%clk 0:02:53]} 9. f5 {[%clk 0:02:54]}  Bxb3 {[%clk 0:02:49]} 10. axb3 {[%clk 0:02:55]}  Qb6 {[%clk 0:02:48]} 11. Bg5 {[%clk 0:02:53]}  Nd4 {[%clk 0:02:41]} 12. Bxf6 {[%clk 0:02:41]}  gxf6 {[%clk 0:02:40]} 13. Nd5 {[%clk 0:02:41]}  Qd8 {[%clk 0:02:39]} 14. c3 {[%clk 0:02:35]}  Nc6 {[%clk 0:02:38]} 15. Qh5 {[%clk 0:02:20]}  Bg7 {[%clk 0:02:37]} 16. Bc4 {[%clk 0:02:12]}  O-O {[%clk 0:02:33]} 17. O-O {[%clk 0:01:22]}  b5 {[%clk 0:02:31]} 18. Be2 {[%clk 0:01:18]}  Kh8 {[%clk 0:02:30]} 19. Kh1 {[%clk 0:01:14]}  Ne7 {[%clk 0:02:29]} 20. Ne3 {[%clk 0:01:08]}  Qb6 {[%clk 0:02:13]} 21. Rf3 {[%clk 0:00:28]}  d5 {[%clk 0:02:08]} 22. exd5 {[%clk 0:00:27]}  Rad8 {[%clk 0:02:08]} 23. Rc1 {[%clk 0:00:26]}  Nxd5 {[%clk 0:02:05]} 24. Nxd5 {[%clk 0:00:15]}  Rxd5 {[%clk 0:02:06]} 25. Rd3 {[%clk 0:00:11]}  Rxd3 {[%clk 0:02:04]} 26. Bxd3 {[%clk 0:00:12]}  Qe3 {[%clk 0:02:04]} 27. Rd1 {[%clk 0:00:12]}  e4 {[%clk 0:02:03]} 28. Qe2 {[%clk 0:00:12]}  Qxe2 {[%clk 0:01:58]} 29. Bxe2 {[%clk 0:00:13]}  Bh6 {[%clk 0:01:58]} 30. Rd4 {[%clk 0:00:11]}  Re8 {[%clk 0:01:58]} 31. Kh2 {[%clk 0:00:10]}  Bf4+ {[%clk 0:01:56]} 32. g3 {[%clk 0:00:09]}  Be5 {[%clk 0:01:57]} 33. Rd7 {[%clk 0:00:07]}  Rg8 {[%clk 0:01:54]} 34. Bg4 {[%clk 0:00:04]}  h5 {[%clk 0:01:54]} 35. Bxh5 {[%clk 0:00:03]}  Rxg3 {[%clk 0:01:54]} 36. Rxf7 {[%clk 0:00:02]}  Rg5+ {[%clk 0:01:52]} 37. Kh1 {[%clk 0:00:03]}  Rxh5 {[%clk 0:01:52]} 38. Kg2 {[%clk 0:00:02]}  Rxf5 {[%clk 0:01:52]} 39. Rf8+ {[%clk 0:00:02]}  Kg7 {[%clk 0:01:52]} 40. Ra8 {[%clk 0:00:03]}  Rg5+ {[%clk 0:01:50]} 41. Kf2 {[%clk 0:00:02]}  Rg3 {[%clk 0:01:48]} 42. Ke2 {[%clk 0:00:02]}  Rxh3 {[%clk 0:01:48]} 43. Rxa6 {[%clk 0:00:02]}  Kg6 {[%clk 0:01:49]} 44. Rb6 {[%clk 0:00:02]}  Kf5 {[%clk 0:01:49]} 45. Rxb5 {[%clk 0:00:00]}  Kf4 {[%clk 0:01:49]} 0-1


[Site "https://www.chess.com"]

[Event "Titled Tuesday Blitz May 16 Early 2023"]
[White "Gutkin, Ilya"]
[Black "Sakun, Volodymyr"]
[WhiteFideId "16203470"]
[BlackFideId "14114062"]
[WhiteElo "2265"]
[BlackElo "2318"]
[Result "0-1"]
[Round "01"]
[TimeControl "180+2"]
[Date "2023.05.16"]
[WhiteClock "0:00:11"]
[BlackClock "0:00:40"]

1. Nf3 {[%clk 0:03:00]}  Nf6 {[%clk 0:02:59]} 2. g3 {[%clk 0:03:01]}  g6 {[%clk 0:03:00]} 3. b3 {[%clk 0:03:01]}  Bg7 {[%clk 0:03:01]} 4. Bb2 {[%clk 0:03:02]}  O-O {[%clk 0:03:01]} 5. Bg2 {[%clk 0:03:02]}  d6 {[%clk 0:03:02]} 6. d4 {[%clk 0:03:02]}  a5 {[%clk 0:02:59]} 7. O-O {[%clk 0:03:02]}  a4 {[%clk 0:03:00]} 8. c4 {[%clk 0:03:01]}  Qe8 {[%clk 0:02:53]} 9. d5 {[%clk 0:02:56]}  e5 {[%clk 0:02:46]} 10. dxe6 {[%clk 0:02:56]}  fxe6 {[%clk 0:02:46]} 11. Na3 {[%clk 0:02:47]}  Qe7 {[%clk 0:02:33]} 12. Nb5 {[%clk 0:02:37]}  Nc6 {[%clk 0:02:29]} 13. Nfd4 {[%clk 0:02:35]}  Ne5 {[%clk 0:02:21]} 14. Qd2 {[%clk 0:02:24]}  c6 {[%clk 0:02:16]} 15. Na3 {[%clk 0:02:22]}  Nf7 {[%clk 0:02:10]} 16. h3 {[%clk 0:02:18]}  e5 {[%clk 0:02:10]} 17. Nf3 {[%clk 0:02:15]}  Rd8 {[%clk 0:02:07]} 18. Ng5 {[%clk 0:02:10]}  d5 {[%clk 0:01:59]} 19. Nxf7 {[%clk 0:02:09]}  Kxf7 {[%clk 0:02:00]} 20. cxd5 {[%clk 0:02:09]}  cxd5 {[%clk 0:02:00]} 21. Nb5 {[%clk 0:02:03]}  Qc5 {[%clk 0:01:48]} 22. Nc3 {[%clk 0:01:41]}  a3 {[%clk 0:01:47]} 23. Bc1 {[%clk 0:01:29]}  e4 {[%clk 0:01:46]} 24. Na4 {[%clk 0:01:26]}  Qd6 {[%clk 0:01:34]} 25. Qf4 {[%clk 0:01:21]}  b5 {[%clk 0:01:23]} 26. Qxd6 {[%clk 0:01:18]}  Rxd6 {[%clk 0:01:24]} 27. Nc5 {[%clk 0:01:06]}  Nd7 {[%clk 0:01:20]} 28. Nxd7 {[%clk 0:01:01]}  Bxa1 {[%clk 0:01:18]} 29. Nc5 {[%clk 0:00:58]}  Bb2 {[%clk 0:01:16]} 30. Bf4 {[%clk 0:00:51]}  Rc6 {[%clk 0:01:16]} 31. b4 {[%clk 0:00:51]}  Bc3 {[%clk 0:01:11]} 32. Nb3 {[%clk 0:00:34]}  Bxb4 {[%clk 0:01:06]} 33. f3 {[%clk 0:00:34]}  Rf6 {[%clk 0:00:46]} 34. fxe4 {[%clk 0:00:29]}  dxe4 {[%clk 0:00:46]} 35. Bxe4 {[%clk 0:00:29]}  Ra7 {[%clk 0:00:44]} 36. Bd5+ {[%clk 0:00:27]}  Be6 {[%clk 0:00:42]} 37. Bc6 {[%clk 0:00:18]}  Bxb3 {[%clk 0:00:40]} 38. axb3 {[%clk 0:00:18]}  a2 {[%clk 0:00:40]} 39. Ra1 {[%clk 0:00:11]}  Bc3 {[%clk 0:00:40]} 0-1


[Site "https://www.chess.com"]

[Event "Titled Tuesday Blitz May 16 Early 2023"]
[White "Volkov, Maksim"]
[Black "Bogaudinov, Rushan"]
[WhiteFideId "54123070"]
[BlackFideId "4129288"]
[WhiteElo "2297"]
[BlackElo "1941"]
[Result "1-0"]
[Round "01"]
[TimeControl "180+2"]
[Date "2023.05.16"]
[WhiteClock "0:00:52"]
[BlackClock "0:00:19"]

1. d4 {[%clk 0:02:43]}  d5 {[%clk 0:02:59]} 2. c4 {[%clk 0:02:42]}  dxc4 {[%clk 0:02:59]} 3. Nf3 {[%clk 0:02:40]}  e6 {[%clk 0:02:59]} 4. e3 {[%clk 0:02:40]}  c5 {[%clk 0:02:58]} 5. Bxc4 {[%clk 0:02:40]}  Nf6 {[%clk 0:02:58]} 6. O-O {[%clk 0:02:41]}  a6 {[%clk 0:02:58]} 7. Nbd2 {[%clk 0:02:41]}  Be7 {[%clk 0:02:58]} 8. dxc5 {[%clk 0:02:40]}  Bxc5 {[%clk 0:02:58]} 9. a3 {[%clk 0:02:40]}  b5 {[%clk 0:02:57]} 10. Be2 {[%clk 0:02:40]}  Bb7 {[%clk 0:02:57]} 11. b4 {[%clk 0:02:40]}  Be7 {[%clk 0:02:52]} 12. Bb2 {[%clk 0:02:40]}  O-O {[%clk 0:02:52]} 13. Nb3 {[%clk 0:02:33]}  Nbd7 {[%clk 0:02:49]} 14. Na5 {[%clk 0:02:32]}  Bd5 {[%clk 0:02:44]} 15. Rc1 {[%clk 0:02:32]}  Rc8 {[%clk 0:02:40]} 16. Nd4 {[%clk 0:02:32]}  Nb6 {[%clk 0:02:37]} 17. Ndc6 {[%clk 0:02:26]}  Qd7 {[%clk 0:02:33]} 18. Nxe7+ {[%clk 0:02:25]}  Qxe7 {[%clk 0:02:34]} 19. Bd4 {[%clk 0:02:24]}  Rxc1 {[%clk 0:02:29]} 20. Qxc1 {[%clk 0:02:22]}  Rc8 {[%clk 0:02:30]} 21. Qa1 {[%clk 0:02:07]}  Nc4 {[%clk 0:02:27]} 22. Rc1 {[%clk 0:02:07]}  Ne8 {[%clk 0:02:07]} 23. Nxc4 {[%clk 0:02:00]}  bxc4 {[%clk 0:02:06]} 24. f3 {[%clk 0:01:58]}  f5 {[%clk 0:01:57]} 25. Bc5 {[%clk 0:01:51]}  Rxc5 {[%clk 0:01:50]} 26. bxc5 {[%clk 0:01:51]}  Qxc5 {[%clk 0:01:51]} 27. Qc3 {[%clk 0:01:43]}  Nd6 {[%clk 0:01:42]} 28. Kf2 {[%clk 0:01:38]}  Nb5 {[%clk 0:01:38]} 29. Qb4 {[%clk 0:01:38]}  Qxb4 {[%clk 0:01:19]} 30. axb4 {[%clk 0:01:39]}  Na3 {[%clk 0:01:10]} 31. Ra1 {[%clk 0:01:11]}  Nc2 {[%clk 0:01:09]} 32. Ra4 {[%clk 0:01:05]}  c3 {[%clk 0:00:53]} 33. Bd1 {[%clk 0:01:05]}  Bb3 {[%clk 0:00:42]} 34. Rxa6 {[%clk 0:00:59]}  f4 {[%clk 0:00:26]} 35. Bxc2 {[%clk 0:00:55]}  fxe3+ {[%clk 0:00:25]} 36. Kxe3 {[%clk 0:00:56]}  Bxc2 {[%clk 0:00:19]} 37. Kd4 {[%clk 0:00:52]} 1-0


[Site "https://www.chess.com"]

[Event "Titled Tuesday Blitz May 16 Early 2023"]
[White "Topalov, Aleksandar"]
[Black "Riff, Vincent"]
[WhiteFideId "925659"]
[BlackFideId "617776"]
[WhiteElo "2151"]
[BlackElo "2369"]
[Result "0-1"]
[Round "01"]
[TimeControl "180+2"]
[Date "2023.05.16"]
[WhiteClock "0:00:05"]
[BlackClock "0:01:14"]

1. b3 {[%clk 0:02:59]}  d5 {[%clk 0:02:59]} 2. Bb2 {[%clk 0:02:54]}  Bg4 {[%clk 0:02:58]} 3. g3 {[%clk 0:02:53]}  c6 {[%clk 0:02:52]} 4. Bg2 {[%clk 0:02:52]}  Nd7 {[%clk 0:02:52]} 5. Nf3 {[%clk 0:02:50]}  Ngf6 {[%clk 0:02:50]} 6. O-O {[%clk 0:02:50]}  e6 {[%clk 0:02:48]} 7. d3 {[%clk 0:02:50]}  Be7 {[%clk 0:02:48]} 8. Nbd2 {[%clk 0:02:49]}  O-O {[%clk 0:02:48]} 9. c4 {[%clk 0:02:44]}  a5 {[%clk 0:02:48]} 10. a3 {[%clk 0:02:44]}  Qb6 {[%clk 0:02:42]} 11. Qb1 {[%clk 0:02:12]}  h6 {[%clk 0:02:33]} 12. Bc3 {[%clk 0:02:05]}  c5 {[%clk 0:02:27]} 13. h3 {[%clk 0:01:54]}  Bf5 {[%clk 0:02:27]} 14. cxd5 {[%clk 0:01:37]}  Nxd5 {[%clk 0:02:26]} 15. Bb2 {[%clk 0:01:36]}  Bf6 {[%clk 0:02:22]} 16. e4 {[%clk 0:01:32]}  Nc3 {[%clk 0:02:18]} 17. Bxc3 {[%clk 0:01:31]}  Bxc3 {[%clk 0:02:18]} 18. exf5 {[%clk 0:01:31]}  Bxa1 {[%clk 0:02:19]} 19. Qxa1 {[%clk 0:01:30]}  exf5 {[%clk 0:02:18]} 20. a4 {[%clk 0:01:16]}  Nf6 {[%clk 0:02:16]} 21. Qc3 {[%clk 0:01:13]}  Rad8 {[%clk 0:02:09]} 22. Nc4 {[%clk 0:01:13]}  Qc7 {[%clk 0:02:09]} 23. Qxa5 {[%clk 0:01:09]}  Qxa5 {[%clk 0:02:07]} 24. Nxa5 {[%clk 0:01:09]}  Rxd3 {[%clk 0:02:08]} 25. Nxb7 {[%clk 0:01:07]}  Rxb3 {[%clk 0:02:07]} 26. Nxc5 {[%clk 0:01:07]}  Ra3 {[%clk 0:02:07]} 27. Nd2 {[%clk 0:00:57]}  Rc8 {[%clk 0:02:04]} 28. Ndb3 {[%clk 0:00:57]}  Ne4 {[%clk 0:02:00]} 29. Bxe4 {[%clk 0:00:54]}  fxe4 {[%clk 0:01:40]} 30. Re1 {[%clk 0:00:54]}  f5 {[%clk 0:01:38]} 31. Rd1 {[%clk 0:00:53]}  g5 {[%clk 0:01:33]} 32. Rd5 {[%clk 0:00:51]}  f4 {[%clk 0:01:32]} 33. gxf4 {[%clk 0:00:51]}  gxf4 {[%clk 0:01:33]} 34. Re5 {[%clk 0:00:50]}  e3 {[%clk 0:01:32]} 35. fxe3 {[%clk 0:00:50]}  fxe3 {[%clk 0:01:32]} 36. Rxe3 {[%clk 0:00:50]}  Rxc5 {[%clk 0:01:32]} 37. Re8+ {[%clk 0:00:27]}  Kf7 {[%clk 0:01:31]} 38. Nxc5 {[%clk 0:00:27]}  Kxe8 {[%clk 0:01:31]} 39. Kg2 {[%clk 0:00:28]}  Ke7 {[%clk 0:01:29]} 40. Kh2 {[%clk 0:00:23]}  Kd6 {[%clk 0:01:27]} 41. Ne4+ {[%clk 0:00:22]}  Kd5 {[%clk 0:01:23]} 42. Nf6+ {[%clk 0:00:21]}  Ke6 {[%clk 0:01:22]} 43. Ng4 {[%clk 0:00:20]}  h5 {[%clk 0:01:22]} 44. Nf2 {[%clk 0:00:17]}  Rxa4 {[%clk 0:01:21]} 45. Kg3 {[%clk 0:00:18]}  Kf5 {[%clk 0:01:19]} 46. Nd1 {[%clk 0:00:16]}  Kg5 {[%clk 0:01:16]} 47. Nf2 {[%clk 0:00:15]}  Ra3+ {[%clk 0:01:15]} 48. Kg2 {[%clk 0:00:15]}  Kf4 {[%clk 0:01:16]} 49. Kh2 {[%clk 0:00:11]}  Kf3 {[%clk 0:01:15]} 50. Nd1 {[%clk 0:00:05]}  Rd3 {[%clk 0:01:14]} 0-1


[Site "https://www.chess.com"]

[Event "Titled Tuesday Blitz May 16 Early 2023"]
[White "Barbot, Pierre"]
[Black "Borgaonkar Akshay"]
[WhiteFideId "663727"]
[BlackFideId "25639110"]
[WhiteElo "2431"]
[BlackElo "2063"]
[Result "0-1"]
[Round "01"]
[TimeControl "180+2"]
[Date "2023.05.16"]
[WhiteClock "0:00:01"]
[BlackClock "0:01:32"]

1. d4 {[%clk 0:03:00]}  Nf6 {[%clk 0:02:56]} 2. Nc3 {[%clk 0:03:00]}  g6 {[%clk 0:02:53]} 3. Bf4 {[%clk 0:02:56]}  Bg7 {[%clk 0:02:52]} 4. e3 {[%clk 0:02:55]}  d6 {[%clk 0:02:50]} 5. h4 {[%clk 0:02:52]}  h5 {[%clk 0:02:50]} 6. Bd3 {[%clk 0:02:24]}  Nbd7 {[%clk 0:02:47]} 7. Nf3 {[%clk 0:02:12]}  c5 {[%clk 0:02:47]} 8. Ne4 {[%clk 0:01:46]}  Nxe4 {[%clk 0:02:27]} 9. Bxe4 {[%clk 0:01:47]}  c4 {[%clk 0:02:23]} 10. c3 {[%clk 0:01:43]}  Nf6 {[%clk 0:02:17]} 11. Bc2 {[%clk 0:01:40]}  d5 {[%clk 0:02:18]} 12. Ne5 {[%clk 0:01:35]}  Ng4 {[%clk 0:02:14]} 13. Nxg4 {[%clk 0:01:12]}  hxg4 {[%clk 0:02:06]} 14. f3 {[%clk 0:01:03]}  e5 {[%clk 0:02:00]} 15. dxe5 {[%clk 0:00:39]}  Rxh4 {[%clk 0:01:56]} 16. Kf2 {[%clk 0:00:35]}  Be6 {[%clk 0:01:49]} 17. e4 {[%clk 0:00:14]}  gxf3 {[%clk 0:01:42]} 18. Qxf3 {[%clk 0:00:10]}  Rxh1 {[%clk 0:01:38]} 19. Rxh1 {[%clk 0:00:10]}  Qb6+ {[%clk 0:01:39]} 20. Be3 {[%clk 0:00:02]}  Qxb2 {[%clk 0:01:39]} 21. Qe2 {[%clk 0:00:03]}  O-O-O {[%clk 0:01:38]} 22. Rb1 {[%clk 0:00:02]}  Qxa2 {[%clk 0:01:37]} 23. exd5 {[%clk 0:00:02]}  Bxd5 {[%clk 0:01:36]} 24. Qe1 {[%clk 0:00:01]}  Qxc2+ {[%clk 0:01:32]} 25. Kg1 {[%clk 0:00:01]}  Qxg2# {[%clk 0:01:32]} 0-1


[Site "https://www.chess.com"]

[Event "Titled Tuesday Blitz May 16 Early 2023"]
[White "Florescu, Codrut-Constantin"]
[Black "Matveeva, Olga"]
[WhiteFideId "1202200"]
[BlackFideId "24107018"]
[WhiteElo "2191"]
[BlackElo "2009"]
[Result "1-0"]
[Round "01"]
[TimeControl "180+2"]
[Date "2023.05.16"]
[WhiteClock "0:00:35"]
[BlackClock "0:00:12"]

1. c4 {[%clk 0:03:00]}  c5 {[%clk 0:02:56]} 2. g3 {[%clk 0:02:58]}  Nc6 {[%clk 0:02:56]} 3. Bg2 {[%clk 0:02:58]}  g6 {[%clk 0:02:56]} 4. Nc3 {[%clk 0:02:58]}  Bg7 {[%clk 0:02:56]} 5. Nf3 {[%clk 0:02:58]}  e6 {[%clk 0:02:56]} 6. d4 {[%clk 0:02:53]}  Nxd4 {[%clk 0:02:54]} 7. Nxd4 {[%clk 0:02:52]}  cxd4 {[%clk 0:02:53]} 8. Nb5 {[%clk 0:02:52]}  d5 {[%clk 0:02:43]} 9. Qa4 {[%clk 0:02:40]}  Bd7 {[%clk 0:02:39]} 10. Nd6+ {[%clk 0:02:26]}  Kf8 {[%clk 0:02:33]} 11. Qa3 {[%clk 0:02:22]}  Qe7 {[%clk 0:02:29]} 12. cxd5 {[%clk 0:02:13]}  Nf6 {[%clk 0:02:01]} 13. dxe6 {[%clk 0:02:01]}  Bxe6 {[%clk 0:02:01]} 14. Nxb7 {[%clk 0:01:59]}  Qxa3 {[%clk 0:01:58]} 15. bxa3 {[%clk 0:01:59]}  Rc8 {[%clk 0:01:39]} 16. Bd2 {[%clk 0:01:55]}  Nd5 {[%clk 0:01:32]} 17. Rc1 {[%clk 0:01:35]}  Nc3 {[%clk 0:01:24]} 18. Nd6 {[%clk 0:01:28]}  Rb8 {[%clk 0:01:14]} 19. e3 {[%clk 0:01:28]}  Ke7 {[%clk 0:00:57]} 20. Ne4 {[%clk 0:01:23]}  Nxa2 {[%clk 0:00:46]} 21. Rc7+ {[%clk 0:01:20]}  Kd8 {[%clk 0:00:46]} 22. Ba5 {[%clk 0:01:14]}  Ke8 {[%clk 0:00:30]} 23. O-O {[%clk 0:01:07]}  dxe3 {[%clk 0:00:24]} 24. fxe3 {[%clk 0:01:06]}  Be5 {[%clk 0:00:23]} 25. Nf6+ {[%clk 0:00:56]}  Kf8 {[%clk 0:00:20]} 26. Nd7+ {[%clk 0:00:56]}  Bxd7 {[%clk 0:00:20]} 27. Rxd7 {[%clk 0:00:57]}  Kg7 {[%clk 0:00:17]} 28. Rfxf7+ {[%clk 0:00:42]}  Kh6 {[%clk 0:00:17]} 29. Bd2 {[%clk 0:00:43]}  Rb1+ {[%clk 0:00:15]} 30. Kf2 {[%clk 0:00:42]}  Rc8 {[%clk 0:00:14]} 31. e4+ {[%clk 0:00:41]}  g5 {[%clk 0:00:14]} 32. h4 {[%clk 0:00:37]}  Rc2 {[%clk 0:00:12]} 33. hxg5+ {[%clk 0:00:37]}  Kg6 {[%clk 0:00:13]} 34. Bh3 {[%clk 0:00:35]}  Rbb2 {[%clk 0:00:12]} 35. Bf5+ {[%clk 0:00:35]}  Kh5 {[%clk 0:00:12]} 36. Rxh7# {[%clk 0:00:35]} 1-0


[Site "https://www.chess.com"]

[Event "Titled Tuesday Blitz May 16 Early 2023"]
[White "Kvaloy, Aksel Bu"]
[Black "Dishman, Stephen"]
[WhiteFideId "1528815"]
[BlackFideId "403024"]
[WhiteElo "2242"]
[BlackElo "2204"]
[Result "1-0"]
[Round "01"]
[TimeControl "180+2"]
[Date "2023.05.16"]
[WhiteClock "0:01:31"]
[BlackClock "0:00:00"]

1. e4 {[%clk 0:02:59]}  d6 {[%clk 0:02:58]} 2. d4 {[%clk 0:02:59]}  Nf6 {[%clk 0:02:58]} 3. Nc3 {[%clk 0:02:58]}  e5 {[%clk 0:02:59]} 4. Nf3 {[%clk 0:02:56]}  Nbd7 {[%clk 0:02:59]} 5. Bc4 {[%clk 0:02:57]}  Be7 {[%clk 0:02:59]} 6. O-O {[%clk 0:02:57]}  O-O {[%clk 0:03:00]} 7. Re1 {[%clk 0:02:55]}  c6 {[%clk 0:02:59]} 8. a4 {[%clk 0:02:56]}  exd4 {[%clk 0:02:58]} 9. Nxd4 {[%clk 0:02:55]}  Ne5 {[%clk 0:02:58]} 10. Bb3 {[%clk 0:02:53]}  Re8 {[%clk 0:02:58]} 11. h3 {[%clk 0:02:52]}  Bd7 {[%clk 0:02:55]} 12. f4 {[%clk 0:02:52]}  Ng6 {[%clk 0:02:55]} 13. e5 {[%clk 0:02:49]}  dxe5 {[%clk 0:02:51]} 14. fxe5 {[%clk 0:02:50]}  Bc5 {[%clk 0:02:47]} 15. Be3 {[%clk 0:02:27]}  Rxe5 {[%clk 0:02:45]} 16. Kh1 {[%clk 0:02:25]}  Qe7 {[%clk 0:02:34]} 17. Bf2 {[%clk 0:02:22]}  Re8 {[%clk 0:02:29]} 18. Rxe5 {[%clk 0:02:21]}  Qxe5 {[%clk 0:02:30]} 19. Nf3 {[%clk 0:02:20]}  Qe7 {[%clk 0:02:24]} 20. Bxc5 {[%clk 0:02:13]}  Qxc5 {[%clk 0:02:24]} 21. Qd2 {[%clk 0:02:14]}  Qe3 {[%clk 0:02:17]} 22. Qd1 {[%clk 0:02:08]}  Bf5 {[%clk 0:02:02]} 23. a5 {[%clk 0:02:05]}  Ne4 {[%clk 0:02:00]} 24. Nxe4 {[%clk 0:02:03]}  Bxe4 {[%clk 0:01:57]} 25. a6 {[%clk 0:02:00]}  b6 {[%clk 0:01:54]} 26. Qd7 {[%clk 0:01:48]}  Bxf3 {[%clk 0:01:08]} 27. Bxf7+ {[%clk 0:01:47]}  Kf8 {[%clk 0:01:00]} 28. Qxe8+ {[%clk 0:01:47]}  Qxe8 {[%clk 0:00:58]} 29. Bxe8 {[%clk 0:01:48]}  Be4 {[%clk 0:00:46]} 30. Bxg6 {[%clk 0:01:47]}  Bxg6 {[%clk 0:00:43]} 31. c3 {[%clk 0:01:47]}  Ke7 {[%clk 0:00:42]} 32. Kg1 {[%clk 0:01:48]}  c5 {[%clk 0:00:40]} 33. Kf2 {[%clk 0:01:48]}  Bd3 {[%clk 0:00:38]} 34. Ke3 {[%clk 0:01:48]}  Bc4 {[%clk 0:00:37]} 35. b4 {[%clk 0:01:46]}  cxb4 {[%clk 0:00:35]} 36. cxb4 {[%clk 0:01:47]}  Bb5 {[%clk 0:00:36]} 37. Kd4 {[%clk 0:01:46]}  Kd6 {[%clk 0:00:35]} 38. Ra2 {[%clk 0:01:42]}  Ke6 {[%clk 0:00:33]} 39. Rc2 {[%clk 0:01:38]}  Kd7 {[%clk 0:00:30]} 40. g3 {[%clk 0:01:37]}  h6 {[%clk 0:00:25]} 41. h4 {[%clk 0:01:37]}  g6 {[%clk 0:00:21]} 42. Kd5 {[%clk 0:01:37]}  Bxa6 {[%clk 0:00:19]} 43. Ra2 {[%clk 0:01:35]}  Bb7+ {[%clk 0:00:18]} 44. Ke5 {[%clk 0:01:36]}  a6 {[%clk 0:00:18]} 45. Kf6 {[%clk 0:01:36]}  Be4 {[%clk 0:00:17]} 46. Rxa6 {[%clk 0:01:35]}  Kc6 {[%clk 0:00:18]} 47. Ra8 {[%clk 0:01:34]}  Kb5 {[%clk 0:00:18]} 48. Rb8 {[%clk 0:01:35]}  Kxb4 {[%clk 0:00:18]} 49. Rxb6+ {[%clk 0:01:34]}  Kc3 {[%clk 0:00:18]} 50. Rb8 {[%clk 0:01:35]}  Kd3 {[%clk 0:00:18]} 51. Rh8 {[%clk 0:01:36]}  h5 {[%clk 0:00:17]} 52. Rg8 {[%clk 0:01:35]}  Ke3 {[%clk 0:00:17]} 53. Rxg6 {[%clk 0:01:33]}  Kf3 {[%clk 0:00:12]} 54. Rg5 {[%clk 0:01:31]}  Bd3 {[%clk 0:00:09]} 55. Kg7 {[%clk 0:01:32]}  Be4 {[%clk 0:00:09]} 56. Kh6 {[%clk 0:01:32]}  Bd3 {[%clk 0:00:00]} 57. Kxh5 {[%clk 0:01:31]} 1-0


[Site "https://www.chess.com"]

[Event "Titled Tuesday Blitz May 16 Early 2023"]
[White "Girya, Olga"]
[Black "Fernandez Siles, Luis"]
[WhiteFideId "4195752"]
[BlackFideId "2209420"]
[WhiteElo "2263"]
[BlackElo "2195"]
[Result "1-0"]
[Round "01"]
[TimeControl "180+2"]
[Date "2023.05.16"]
[WhiteClock "0:00:54"]
[BlackClock "0:00:06"]

1. d4 {[%clk 0:02:59]}  Nf6 {[%clk 0:02:57]} 2. Nf3 {[%clk 0:02:59]}  g6 {[%clk 0:02:52]} 3. Bg5 {[%clk 0:02:59]}  Bg7 {[%clk 0:02:52]} 4. Nbd2 {[%clk 0:02:59]}  O-O {[%clk 0:02:52]} 5. c3 {[%clk 0:02:59]}  d5 {[%clk 0:02:51]} 6. e3 {[%clk 0:02:57]}  b6 {[%clk 0:02:51]} 7. Be2 {[%clk 0:02:56]}  c5 {[%clk 0:02:51]} 8. O-O {[%clk 0:02:56]}  Ba6 {[%clk 0:02:51]} 9. Bxa6 {[%clk 0:02:48]}  Nxa6 {[%clk 0:02:51]} 10. Ne5 {[%clk 0:02:48]}  Nb8 {[%clk 0:02:40]} 11. h3 {[%clk 0:02:44]}  Nfd7 {[%clk 0:02:38]} 12. Nd3 {[%clk 0:02:29]}  Nc6 {[%clk 0:02:13]} 13. Nf3 {[%clk 0:02:22]}  Qe8 {[%clk 0:01:49]} 14. Nf4 {[%clk 0:01:53]}  h6 {[%clk 0:01:33]} 15. Bh4 {[%clk 0:01:50]}  g5 {[%clk 0:01:33]} 16. Nxd5 {[%clk 0:01:50]}  gxh4 {[%clk 0:01:31]} 17. Nc7 {[%clk 0:01:50]}  Qd8 {[%clk 0:01:25]} 18. Nxa8 {[%clk 0:01:50]}  Qxa8 {[%clk 0:01:26]} 19. Nxh4 {[%clk 0:01:51]}  Nf6 {[%clk 0:01:01]} 20. Nf5 {[%clk 0:01:43]}  e6 {[%clk 0:00:56]} 21. Nxg7 {[%clk 0:01:38]}  Kxg7 {[%clk 0:00:57]} 22. dxc5 {[%clk 0:01:33]}  bxc5 {[%clk 0:00:57]} 23. Qd6 {[%clk 0:01:34]}  Ne4 {[%clk 0:00:49]} 24. Qf4 {[%clk 0:01:33]}  f5 {[%clk 0:00:38]} 25. Rad1 {[%clk 0:01:22]}  Qe8 {[%clk 0:00:32]} 26. f3 {[%clk 0:01:10]}  e5 {[%clk 0:00:28]} 27. Qh4 {[%clk 0:01:09]}  Ng5 {[%clk 0:00:20]} 28. Rd6 {[%clk 0:00:59]}  Nf7 {[%clk 0:00:16]} 29. Qf6+ {[%clk 0:00:58]}  Kg8 {[%clk 0:00:13]} 30. Qg6+ {[%clk 0:00:57]}  Kh8 {[%clk 0:00:12]} 31. Rxc6 {[%clk 0:00:57]}  Rg8 {[%clk 0:00:11]} 32. Qf6+ {[%clk 0:00:57]}  Kh7 {[%clk 0:00:06]} 33. Re6 {[%clk 0:00:54]} 1-0


[Site "https://www.chess.com"]

[Event "Titled Tuesday Blitz May 16 Early 2023"]
[White "Fan_Of_Chucky"]
[Black "Di Nicolantonio, Lucas"]
[BlackFideId "680460"]
[WhiteElo "2341"]
[BlackElo "2358"]
[Result "1-0"]
[Round "01"]
[TimeControl "180+2"]
[Date "2023.05.16"]
[WhiteClock "0:00:40"]
[BlackClock "0:00:41"]

1. d4 {[%clk 0:02:59]}  g6 {[%clk 0:03:00]} 2. c4 {[%clk 0:02:59]}  Bg7 {[%clk 0:03:00]} 3. Nf3 {[%clk 0:02:59]}  d6 {[%clk 0:03:01]} 4. g3 {[%clk 0:02:57]}  f5 {[%clk 0:03:01]} 5. Bg2 {[%clk 0:02:56]}  Nf6 {[%clk 0:03:02]} 6. O-O {[%clk 0:02:57]}  O-O {[%clk 0:03:03]} 7. Nc3 {[%clk 0:02:56]}  Nc6 {[%clk 0:03:03]} 8. b3 {[%clk 0:02:54]}  e5 {[%clk 0:03:04]} 9. dxe5 {[%clk 0:02:15]}  dxe5 {[%clk 0:03:04]} 10. Qxd8 {[%clk 0:02:07]}  Rxd8 {[%clk 0:03:04]} 11. e4 {[%clk 0:02:03]}  Nd4 {[%clk 0:02:35]} 12. Nxd4 {[%clk 0:01:32]}  exd4 {[%clk 0:02:34]} 13. Nb5 {[%clk 0:01:33]}  fxe4 {[%clk 0:02:03]} 14. Nxc7 {[%clk 0:01:29]}  Rb8 {[%clk 0:02:03]} 15. Bg5 {[%clk 0:01:29]}  Bf5 {[%clk 0:01:57]} 16. Rae1 {[%clk 0:01:20]}  d3 {[%clk 0:01:18]} 17. f3 {[%clk 0:01:19]}  Rd7 {[%clk 0:01:09]} 18. fxe4 {[%clk 0:01:03]}  Nxe4 {[%clk 0:01:09]} 19. Bxe4 {[%clk 0:01:03]}  Bd4+ {[%clk 0:01:09]} 20. Kg2 {[%clk 0:00:55]}  Rxc7 {[%clk 0:00:58]} 21. Bxf5 {[%clk 0:00:49]}  gxf5 {[%clk 0:00:58]} 22. Rxf5 {[%clk 0:00:49]}  Rf8 {[%clk 0:00:51]} 23. Rxf8+ {[%clk 0:00:44]}  Kxf8 {[%clk 0:00:52]} 24. Rd1 {[%clk 0:00:44]}  Rf7 {[%clk 0:00:45]} 25. Bf4 {[%clk 0:00:43]}  Re7 {[%clk 0:00:42]} 26. Bd6 {[%clk 0:00:40]}  Bf6 {[%clk 0:00:41]} 1-0


[Site "https://www.chess.com"]